bitfinex-derivatives/quotes_SOLF0:USTF0_20250524
["timestamp","ask_amount","ask_price","bid_price","bid_amount"]
[1748113817081,5.6307,177.55,177.51,5.6318]
[1748113818282,5.6309,177.54,177.51,5.6318]
[1748113819180,5.6306,177.55,177.51,5.6318]
[1748113824487,112.88,177.56,177.51,5.6318]
[1748113824488,5.6309,177.54,177.51,5.6318]
[1748113825084,5.6314,177.53,177.5,0.03721229]
[1748113829993,5.6314,177.53,177.5,5.66921229]
[1748113830795,5.631,177.54,177.5,5.66921229]
[1748113830988,112.88,177.56,177.51,5.6318]
[1748113831188,112.88,177.56,177.5,0.03721229]
[1748113831189,112.88,177.56,177.52,5.09889048]
[1748113831389,5.6296,177.58,177.52,5.09889048]
[1748113831994,5.6296,177.58,177.54,5.6307]
[1748113832296,5.6296,177.58,177.54,5.66866925]
[1748113832596,5.6299,177.57,177.54,5.66866925]
[1748113833501,5.6299,177.57,177.55,5.6305]
[1748113835597,5.6299,177.57,177.54,5.66876925]
[1748113835800,5.6303,177.56,177.54,0.03796925]
[1748113839004,5.63,177.57,177.54,0.03796925]
[1748113842912,5.63,177.57,177.54,5.66876925]
[1748113847822,5.6296,177.58,177.55,5.6304]
[1748113848117,112.74,177.59,177.54,0.03796925]
[1748113848718,112.74,177.62,177.54,0.03796925]
[1748113849513,5.6287,177.61,177.54,0.03796925]
[1748113850207,5.6287,177.61,177.56,5.6302]
[1748113851017,5.6291,177.6,177.56,5.6302]
[1748113851515,5.6291,177.6,177.57,5.6298]
[1748113852122,5.6293,177.59,177.57,5.6298]
[1748113852324,5.6293,177.59,177.56,5.66695555]
[1748113852616,5.6297,177.58,177.56,0.03685555]
[1748113853417,5.6297,177.58,177.56,5.66705555]
[1748113853617,5.6299,177.57,177.56,0.03685555]
[1748113854021,118.3499,177.57,177.56,0.03685555]
[1748113859124,5.6299,177.57,177.56,0.03685555]
[1748113859825,5.629,177.6,177.56,0.03685555]
[1748113860124,112.62,177.61,177.56,0.03685555]
[1748113861629,5.629,177.6,177.57,5.6298]
[1748113862732,5.629,177.6,177.56,5.66695555]
[1748113865228,5.629,177.6,177.57,5.6299]
[1748113866727,112.62,177.61,177.58,5.6295]
[1748113866728,118.2487,177.61,177.58,5.6295]
[1748113867028,112.62,177.61,177.56,0.03685555]
[1748113867329,112.62,177.64,177.56,0.03685555]
[1748113868229,5.6285,177.62,177.56,0.03685555]
[1748113868421,112.62,177.64,177.56,0.03685555]
[1748113868821,7.96310661,177.62,177.56,0.03685555]
[1748113869634,5.6299,177.57,177.56,0.03685555]
[1748113881940,5.6318,177.51,177.5,5.11752753]
[1748113882336,5.6318,177.51,177.48,2.0072]
[1748113882935,5.66920637,177.51,177.48,2.04639524]
[1748113883939,5.6323,177.5,177.48,2.04639524]
[1748113884244,0.03740637,177.51,177.48,0.03919524]
[1748113885543,5.66940637,177.51,177.48,0.03919524]
[1748113889645,5.6321,177.5,177.48,0.03919524]
[1748113890646,5.6324,177.49,177.48,0.03919524]
[1748113890847,112.54,177.49,177.44,5.10712268]
[1748113891151,5.6337,177.45,177.44,5.10712268]
[1748113891539,5.6337,177.45,177.42,2.0404]
[1748113892044,5.67483721,177.45,177.42,2.07828554]
[1748113893349,0.04113721,177.45,177.42,2.07828554]
[1748113893953,0.04113721,177.45,177.44,5.634]
[1748113895150,0.04113721,177.45,177.42,2.07828554]
[1748113895151,0.04113721,177.45,177.43,5.6342]
[1748113899747,0.04113721,177.45,177.44,5.634]
[1748113900055,0.04113721,177.45,177.42,2.07828554]
[1748113900244,0.04113721,177.45,177.43,5.6342]
[1748113901147,0.04113721,177.45,177.42,7.71288554]
[1748113901548,0.04113721,177.45,177.42,2.07828554]
[1748113901750,5.6343,177.43,177.42,0.03788554]
[1748113905553,5.6341,177.44,177.42,0.03788554]
[1748113906858,5.6343,177.43,177.42,0.03788554]
[1748113907451,5.6341,177.44,177.42,0.03788554]
[1748113912662,0.04113721,177.45,177.42,0.03788554]
[1748113913562,0.04113721,177.45,177.43,5.6341]
[1748113915766,0.04113721,177.45,177.44,5.634]
[1748113916964,0.04113721,177.45,177.43,5.6343]
[1748113917265,0.04113721,177.45,177.42,0.03788554]
[1748113917469,5.67493721,177.45,177.42,0.03788554]
[1748113918564,5.67493721,177.45,177.42,5.67248554]
[1748113920473,5.6341,177.44,177.42,0.03788554]
[1748113920673,0.04113721,177.45,177.42,0.03788554]
[1748113921271,5.634,177.44,177.42,0.03788554]
[1748113922376,5.6343,177.43,177.42,0.03788554]
[1748113922576,118.1143,177.43,177.42,0.03788554]
[1748113929272,118.1143,177.43,177.35,1.8453]
[1748113929273,5.6362,177.38,177.35,1.8453]
[1748113929579,112.5,177.39,177.33,5.10005997]
[1748113929781,5.6361,177.38,177.34,5.6369]
[1748113929971,112.5,177.39,177.32,9.02525997]
[1748113930374,0.03726442,177.37,177.34,0.04164538]
[1748113931584,5.67356442,177.37,177.34,5.67884538]
[1748113936188,0.03726442,177.37,177.34,5.67884538]
[1748113937592,5.67356442,177.37,177.34,5.67884538]
[1748113938093,5.67356442,177.37,177.34,0.04164538]
[1748113939692,0.03726442,177.37,177.34,0.04164538]
[1748113939904,0.03726442,177.37,177.28,5.10425257]
[1748113939905,7.96310661,177.35,177.28,5.10425257]
[1748113940090,7.96310661,177.32,177.28,5.10425257]
[1748113940390,5.6388,177.29,177.28,5.10425257]
[1748113940696,5.6388,177.29,177.24,5.10425257]
[1748113940893,0.03820065,177.28,177.25,5.68038475]
[1748113941196,0.03820065,177.28,177.25,0.04048475]
[1748113941397,112.52,177.34,177.33,5.6374]
[1748113943787,0.03649717,177.35,177.34,5.6372]
[1748113987620,0.03649717,177.35,177.34,10.75983731]
[1748113989210,0.03649717,177.35,177.34,5.12263731]
[1748113989917,0.03649717,177.35,177.3,5.2410886]
[1748113990224,5.1081253,177.31,177.3,5.2410886]
[1748113990423,123.1063253,177.31,177.3,2.7628886]
[1748113991830,5.6385,177.3,177.29,0.0390507]
[1748113996820,112.4017442,177.31,177.22,1.8928]
[1748113997119,112.4017442,177.31,177.22,7.5336]
[1748113997323,5.6401,177.25,177.22,7.5336]
[1748113997629,5.6401,177.25,177.18,1.8866]
[1748113997826,0.03758433,177.23,177.2,5.67774606]
[1748113998023,5.67838433,177.23,177.2,0.03634606]
[1748113999125,112.4,177.22,177.2,0.03634606]
[1748114000829,0.03758433,177.23,177.2,0.03634606]
[1748114002632,0.03758433,177.23,177.22,5.641]
[1748114007328,0.03758433,177.23,177.21,5.6412]
[1748114007829,0.03758433,177.23,177.2,0.03634606]
[1748114008530,5.67848433,177.23,177.2,0.03634606]
[1748114008729,0.03758433,177.23,177.2,0.03634606]
[1748114009133,5.6413,177.21,177.2,0.03634606]
[1748114009326,118.0813,177.21,177.2,0.03634606]
[1748114012935,112.44,177.21,177.2,0.03634606]
[1748114019127,118.0813,177.21,177.2,0.03634606]
[1748114029845,5.6436,177.14,177.11,5.9357]
[1748114030048,112.4,177.13,177.06,1.8711]
[1748114030345,118.0444,177.12,177.09,5.6451]
[1748114030541,112.4,177.12,177.06,3.7585]
[1748114030941,0.03935144,177.11,177.09,5.6449]
[1748114031135,0.03935144,177.11,177.07,0.0389161]
[1748114031641,5.6451,177.1,177.07,5.6847161]
[1748114032042,0.03935144,177.11,177.07,0.0389161]
[1748114032445,5.6449,177.1,177.07,0.0389161]
[1748114033546,5.6449,177.1,177.07,5.6847161]
[1748114034449,5.6449,177.1,177.07,0.0389161]
[1748114034849,5.6452,177.09,177.07,0.0389161]
[1748114035248,0.03935144,177.11,177.07,5.6845161]
[1748114035548,0.03935144,177.11,177.07,0.0389161]
[1748114036648,5.68415144,177.11,177.07,5.6846161]
[1748114037553,5.6449,177.1,177.07,5.6846161]
[1748114039659,5.6454,177.09,177.07,0.0389161]
[1748114042758,118.0255,177.08,177.07,0.0389161]
[1748114043350,5.6469,177.04,177.01,2.0104]
[1748114043549,118.0269,177.04,177.01,2.0104]
[1748114044162,112.38,177.04,177.01,7.658]
[1748114044355,112.42056614,177.04,177.01,7.69392989]
[1748114046158,118.06736614,177.04,177.01,0.03592989]
[1748114046364,112.42056614,177.04,177.01,0.03592989]
[1748114046664,5.6473,177.03,177.01,0.03592989]
[1748114046957,112.42056614,177.04,177.01,0.03592989]
[1748114047160,5.6471,177.03,177.01,0.03592989]
[1748114047559,112.42056614,177.04,177.01,0.03592989]
[1748114047962,118.06756614,177.04,177.01,0.03592989]
[1748114048460,112.42056614,177.04,177.01,0.03592989]
[1748114048653,0.04056614,177.04,177.01,0.03592989]
[1748114049156,0.04056614,177.04,177.03,5.6471]
[1748114051367,112.4,177.05,177.04,5.6467]
[1748114055466,112.4,177.05,177.02,5.6473]
[1748114055866,0.03773246,177.06,177.01,0.03592989]
[1748114056062,0.03773246,177.06,177.01,112.43592989]
[1748114056565,0.03773246,177.06,177.05,5.6464]
[1748114058570,0.03773246,177.06,177.04,5.6467]
[1748114058877,0.03773246,177.06,177.01,0.03592989]
[1748114059569,5.68383246,177.06,177.03,5.647]
[1748114059867,0.03773246,177.06,177.01,0.03592989]
[1748114060867,0.03773246,177.06,177.04,5.6465]
[1748114061972,0.03773246,177.06,177.03,5.647]
[1748114062668,0.03773246,177.06,177.02,5.6473]
[1748114063072,5.68413246,177.06,177.03,5.647]
[1748114065070,0.03773246,177.06,177.01,0.03592989]
[1748114065268,8.02981335,177.06,177.01,0.03592989]
[1748114065572,5.6474,177.02,177.01,0.03592989]
[1748114065773,118.0474,177.02,177.01,0.03592989]
[1748114078686,112.4,177.02,176.94,1.8517]
[1748114078987,7.99208089,177.0,176.94,1.8517]
[1748114079385,7.99208089,177.0,176.9,2.0001]
[1748114079589,0.04020431,176.97,176.93,0.03693582]
[1748114079777,112.38,176.96,176.93,0.03693582]
[1748114079977,5.6496,176.95,176.93,0.03693582]
[1748114081887,5.6499,176.94,176.93,0.03693582]
[1748114082292,112.38,176.96,176.93,0.03693582]
[1748114082682,5.6498,176.95,176.93,0.03693582]
[1748114086795,112.38,176.96,176.82,112.42]
[1748114086991,112.38,176.96,176.83,5.901]
[1748114087795,0.03984241,176.91,176.88,0.03606172]
[1748114088295,0.03984241,176.91,176.9,5.6512]
[1748114088695,118.0294,176.96,176.89,3.9839]
[1748114088892,112.38,176.96,176.89,3.9839]
[1748114089706,0.04271242,176.94,176.89,3.9839]
[1748114090598,0.04271242,176.94,176.92,5.6505]
[1748114091401,0.04271242,176.94,176.93,5.6502]
[1748114093201,112.42,176.99,176.92,0.03811289]
[1748114093796,112.42,176.99,176.96,5.6491]
[1748114094193,112.45672542,176.99,176.96,5.68817884]
[1748114094805,112.45672542,176.99,176.97,5.6489]
[1748114095898,112.45672542,176.99,176.98,5.6486]
[1748114097002,112.45672542,176.99,176.97,5.6488]
[1748114097203,112.45672542,176.99,176.96,0.03907884]
[1748114097508,0.03672542,176.99,176.96,0.03907884]
[1748114098507,0.03672542,176.99,176.97,5.6489]
[1748114098806,0.03672542,176.99,176.96,0.03907884]
[1748114099005,0.03672542,176.99,176.98,5.6486]
[1748114100709,0.03672542,176.99,176.97,5.6488]
[1748114100898,0.03672542,176.99,176.96,0.03907884]
[1748114101601,0.03672542,176.99,176.96,5.68807884]
[1748114102701,0.03672542,176.99,176.97,5.6489]
[1748114105706,0.03672542,176.99,176.96,5.68817884]
[1748114105910,0.03672542,176.99,176.96,0.03907884]
[1748114107004,0.03672542,176.99,176.96,5.68827884]
[1748114108109,0.03672542,176.99,176.98,5.6486]
[1748114108400,112.42,177.02,176.96,0.03907884]
[1748114108601,112.38,177.05,176.96,0.03907884]
[1748114108803,120.37208089,177.05,176.95,3.9018]
[1748114109007,7.99208089,177.02,176.95,3.9018]
[1748114109201,112.38,177.01,176.95,3.9018]
[1748114109509,5.6485,176.99,176.96,0.04183341]
[1748114109706,0.03966192,177.0,176.96,0.04183341]
[1748114110008,0.03966192,177.0,176.97,5.6489]
[1748114110903,0.03966192,177.0,176.96,0.04183341]
[1748114112114,5.6489,176.97,176.96,0.04183341]
[1748114113111,0.03966192,177.0,176.96,0.04183341]
[1748114113112,5.6487,176.98,176.96,0.04183341]
[1748114118315,5.6489,176.97,176.96,0.04183341]
[1748114118814,0.03966192,177.0,176.96,0.04183341]
[1748114120014,112.38,177.05,176.96,0.04183341]
[1748114120317,112.38,177.05,176.96,112.38]
[1748114120516,112.38,177.05,176.97,1.9797]
[1748114121017,0.03902294,177.03,176.99,0.03883911]
[1748114122722,5.6474,177.02,176.99,0.03883911]
[1748114122918,0.03902294,177.03,176.99,0.03883911]
[1748114125920,5.648,177.0,176.99,0.03883911]
[1748114128121,5.6478,177.01,176.99,0.03883911]
[1748114128316,0.03902294,177.03,176.99,0.03883911]
[1748114129025,5.68622294,177.03,176.99,5.68693911]
[1748114129217,5.68622294,177.03,176.99,0.03883911]
[1748114130424,0.03902294,177.03,176.99,0.03883911]
[1748114131227,0.03902294,177.03,177.01,5.6474]
[1748114132728,5.68602294,177.03,177.0,5.6479]
[1748114133528,0.03902294,177.03,177.01,5.6474]
[1748114134726,5.68602294,177.03,177.0,5.6479]
[1748114135536,0.03902294,177.03,177.01,5.6475]
[1748114136737,0.03902294,177.03,177.02,5.6474]
[1748114138438,0.03902294,177.03,177.01,5.6476]
[1748114138629,0.03902294,177.03,176.99,0.03883911]
[1748114139135,0.03902294,177.03,177.01,5.6476]
[1748114140641,0.03902294,177.03,177.02,5.6474]
[1748114141437,601.2,177.08,177.04,5.6467]
[1748114141938,601.2,177.08,177.02,5.6471]
[1748114142139,601.2,177.08,177.0,1.9554]
[1748114142340,0.03871189,177.06,177.02,0.04156337]
[1748114142530,0.03871189,177.06,177.03,5.647]
[1748114143637,0.03871189,177.06,177.04,5.6465]
[1748114143942,0.03871189,177.06,177.02,0.04156337]
[1748114144344,0.03871189,177.06,177.05,5.6464]
[1748114144534,112.98,177.11,177.03,1.8768]
[1748114144844,112.98,177.12,177.06,5.6458]
[1748114145536,0.03983749,177.11,177.07,0.03747528]
[1748114146542,5.6454,177.08,177.07,0.03747528]
[1748114148540,5.6452,177.09,177.07,0.03747528]
[1748114148739,0.03983749,177.11,177.07,0.03747528]
[1748114149044,5.68433749,177.11,177.08,5.6452]
[1748114149548,0.03983749,177.11,177.07,0.03747528]
[1748114149746,0.03983749,177.11,177.08,5.6454]
[1748114149947,0.03983749,177.11,177.07,0.03747528]
[1748114150450,0.03983749,177.11,177.08,5.6454]
[1748114151448,5.68433749,177.11,177.08,5.6454]
[1748114152045,5.6449,177.1,177.07,5.68317528]
[1748114157765,5.68443749,177.11,177.08,5.6454]
[1748114160062,0.03983749,177.11,177.09,5.645]
[1748114161060,0.03983749,177.11,177.08,5.6453]
[1748114161361,5.68453749,177.11,177.08,5.6453]
[1748114162158,0.03983749,177.11,177.07,2.03337528]
[1748114162357,5.12395324,177.08,177.07,0.03747528]
[1748114162566,118.06395324,177.08,176.99,1.9959]
[1748114162752,10.77075324,177.04,177.0,5.6478]
[1748114162958,5.12395324,177.04,177.0,5.6478]
[1748114163153,5.12395324,177.04,176.99,1.9959]
[1748114163358,10.77075324,177.04,177.01,5.6475]
[1748114163563,0.04022462,177.04,177.01,0.04302163]
[1748114164061,0.04022462,177.04,177.01,5.69062163]
[1748114164565,0.04022462,177.04,177.02,5.6473]
[1748114166559,0.04022462,177.04,177.01,0.04302163]
[1748114168666,5.68702462,177.04,177.01,5.69052163]
[1748114169966,5.647,177.03,177.01,0.04302163]
[1748114170157,0.04022462,177.04,177.01,0.04302163]
[1748114171569,0.04022462,177.04,177.02,5.6471]
[1748114172867,0.04022462,177.04,177.01,0.04302163]
[1748114173666,0.04022462,177.04,177.02,5.647]
[1748114175674,0.04022462,177.04,177.01,0.04302163]
[1748114175675,5.68702462,177.04,177.01,5.69072163]
[1748114177071,0.04022462,177.04,177.03,5.647]
[1748114177777,0.04022462,177.04,177.02,5.6472]
[1748114191688,0.04022462,177.04,177.03,5.6471]
[1748114192191,0.04022462,177.04,177.01,0.04302163]
[1748114192383,0.04022462,177.04,177.02,5.6472]
[1748114197988,5.68702462,177.04,177.01,5.69062163]
[1748114198190,0.04022462,177.04,177.01,0.04302163]
[1748114198398,5.12759199,177.03,177.01,0.04302163]
[1748114198584,112.38,177.02,176.98,4.9801501]
[1748114198900,5.12759199,176.99,176.98,4.9801501]
[1748114199289,5.6492,176.97,176.93,5.6502]
[1748114199498,5.12759199,176.96,176.93,5.6502]
[1748114199697,5.12759199,176.96,176.93,0.04034411]
[1748114199890,5.12759199,176.94,176.93,0.04034411]
[1748114201699,112.38169922,176.97,176.93,0.04034411]
[1748114201894,118.03079922,176.97,176.93,0.04034411]
[1748114202696,112.38169922,176.97,176.93,0.04034411]
[1748114202898,112.40169922,176.97,176.93,0.04034411]
[1748114203901,112.40169922,176.97,176.96,5.6493]
[1748114205901,0.04169922,176.97,176.96,5.6493]
[1748114212099,488.02,177.02,176.95,1.8944]
[1748114212397,112.38,177.03,176.95,1.8944]
[1748114212592,112.38,177.03,177.02,5.6474]
[1748114212793,112.38,177.06,176.95,13.9161246]
[1748114213102,0.0425518,177.02,176.99,0.04315962]
[1748114214200,0.0425518,177.02,177.01,5.6477]
[1748114228518,0.0425518,177.02,177.0,5.648]
[1748114228820,0.0425518,177.02,176.99,0.04315962]
[1748114229620,0.0425518,177.02,177.01,5.6477]
[1748114230018,112.38,177.06,176.99,0.04315962]
[1748114230719,112.38,177.06,177.04,5.6465]
[1748114230920,112.38,177.06,177.03,0.04203647]
[1748114231219,112.41663292,177.06,177.03,0.04203647]
[1748114231523,112.41663292,177.06,177.04,5.6468]
[1748114232419,112.41663292,177.06,177.05,5.6464]
[1748114236230,0.03663292,177.06,177.05,5.6464]
[1748114245335,0.03663292,177.06,177.04,5.6467]
[1748114245834,5.68303292,177.06,177.03,5.68903647]
[1748114246338,0.03663292,177.06,177.04,5.6467]
[1748114246540,0.03663292,177.06,177.03,0.04203647]
[1748114247635,0.03663292,177.06,177.04,5.6465]
[1748114248139,0.03663292,177.06,177.05,5.6464]
[1748114249245,0.03663292,177.06,177.04,5.6467]
[1748114249441,0.03663292,177.06,177.03,0.04203647]
[1748114250545,0.03663292,177.06,177.05,5.6464]
[1748114252049,0.03663292,177.06,177.04,5.6467]
[1748114257755,5.68283292,177.06,177.04,5.6467]
[1748114259553,5.6468,177.04,177.03,0.04203647]
[1748114262053,123.03217918,177.05,177.03,0.04203647]
[1748114264455,5.6468,177.04,177.03,0.04203647]
[1748114264643,117.38557918,177.05,176.95,9.8226]
[1748114264848,5.12557918,177.01,176.95,5.8226]
[1748114265049,5.12557918,176.99,176.95,1.9225]
[1748114265251,5.12557918,176.97,176.94,5.23454098]
[1748114265547,5.12557918,176.97,176.94,10.88424098]
[1748114265746,0.03972744,176.97,176.94,10.92554201]
[1748114265952,0.03972744,176.97,176.94,5.69100103]
[1748114268559,5.68882744,176.97,176.94,0.04130103]
[1748114269653,5.6494,176.96,176.94,0.04130103]
[1748114272962,5.68872744,176.97,176.94,0.04130103]
[1748114274463,5.6494,176.96,176.94,0.04130103]
[1748114279562,5.6496,176.95,176.94,0.04130103]
[1748114289677,10.78190491,176.96,176.94,0.04130103]
[1748114292087,5.6496,176.95,176.94,0.04130103]
[1748114297088,5.6509,176.91,176.87,112.32]
[1748114297281,5.13250491,176.91,176.87,112.32]
[1748114297481,5.13250491,176.91,176.84,123.38330491]
[1748114297884,5.13250491,176.91,176.85,112.28]
[1748114298185,0.04056889,176.9,176.86,0.04112029]
[1748114298585,0.04056889,176.9,176.89,5.6515]
[1748114298791,112.32,176.97,176.86,5.1736252]
[1748114299090,5.13250491,176.95,176.93,5.65]
[1748114300989,5.13250491,176.95,176.94,5.65]
[1748114301185,0.0357355,176.96,176.92,0.035712]
[1748114301492,5.13250491,177.0,176.98,5.6484]
[1748114301689,112.28,177.01,176.98,5.6484]
[1748114302093,112.28,177.01,176.91,7.9292]
[1748114302295,112.28,177.01,176.99,5.6482]
[1748114302589,5.6475,177.02,176.98,0.03892853]
[1748114302590,0.0416687,177.02,176.98,0.03892853]
[1748114302889,0.03901273,177.02,176.98,0.03970394]
[1748114303586,5.68651273,177.02,176.99,5.6481]
[1748114305086,5.6478,177.01,176.98,5.68830394]
[1748114305494,0.03901273,177.02,176.98,0.03970394]
[1748114306296,5.6478,177.01,176.98,0.03970394]
[1748114306992,5.6482,177.0,176.98,0.03970394]
[1748114307795,5.6484,176.99,176.98,0.03970394]
[1748114309594,5.6481,177.0,176.98,0.03970394]
[1748114313095,0.03901273,177.02,176.98,0.03970394]
[1748114314697,0.03901273,177.02,176.99,5.6483]
[1748114315096,5.68651273,177.02,176.99,5.6483]
[1748114318996,0.03901273,177.02,176.98,0.03970394]
[1748114319396,5.6483,177.0,176.98,0.03970394]
[1748114319798,0.03901273,177.02,176.98,0.03970394]
[1748114319997,5.6478,177.01,176.98,5.68810394]
[1748114322401,5.6481,177.0,176.98,0.03970394]
[1748114324500,5.6481,177.0,176.98,5.68840394]
[1748114325500,5.6478,177.01,176.99,5.6484]
[1748114326099,5.6478,177.01,176.98,5.68830394]
[1748114326501,5.6481,177.0,176.98,5.68830394]
[1748114327104,5.6481,177.0,176.98,0.03970394]
[1748114327399,5.6484,176.99,176.98,0.03970394]
[1748114330201,5.6481,177.0,176.98,0.03970394]
[1748114331410,5.6481,177.0,176.98,5.68830394]
[1748114332102,5.6481,177.0,176.98,0.03970394]
[1748114332303,5.6484,176.99,176.98,0.03970394]
[1748114333811,5.13019448,177.01,176.98,0.03970394]
[1748114334304,10.77809448,177.01,176.98,5.68820394]
[1748114334702,5.13019448,177.01,176.98,0.03970394]
[1748114335004,5.6481,177.0,176.98,0.03970394]
[1748114337206,5.6481,177.0,176.98,5.68840394]
[1748114337403,10.77799448,177.01,176.98,5.68840394]
[1748114338008,5.648,177.0,176.98,5.68840394]
[1748114338209,5.648,177.0,176.98,0.03970394]
[1748114338811,10.77819448,177.01,176.98,5.68830394]
[1748114339107,10.77819448,177.01,176.98,0.03970394]
[1748114339411,5.6481,177.0,176.98,0.03970394]
[1748114339907,5.6484,176.99,176.98,0.03970394]
[1748114345209,117.8481,177.0,176.98,0.03970394]
[1748114346613,112.2,177.0,176.98,0.03970394]
[1748114346815,0.03901273,177.02,176.99,5.13019448]
[1748114347115,0.03901273,177.02,177.0,1.98]
[1748114347715,0.03901273,177.02,177.0,7.6278]
[1748114348214,0.03901273,177.02,177.0,1.98]
[1748114349615,0.03901273,177.02,177.01,5.6477]
[1748114355315,112.2,177.07,177.01,5.13019448]
[1748114355518,605.41019448,177.1,177.01,7.16259448]
[1748114355817,5.6453,177.09,177.05,5.6462]
[1748114356021,605.41019448,177.1,177.05,5.6462]
[1748114356217,0.03627231,177.09,177.06,0.03679215]
[1748114357421,5.68157231,177.09,177.06,0.03679215]
[1748114357722,0.03627231,177.09,177.06,0.03679215]
[1748114358625,5.6456,177.08,177.06,0.03679215]
[1748114360724,5.68147231,177.09,177.06,5.68289215]
[1748114363928,0.03627231,177.09,177.07,5.6458]
[1748114364528,5.68147231,177.09,177.07,5.6458]
[1748114364730,5.68147231,177.09,177.06,5.68279215]
[1748114364932,0.03627231,177.09,177.06,0.03679215]
[1748114365228,0.03627231,177.09,177.07,5.6458]
[1748114365422,0.03627231,177.09,177.06,0.03679215]
[1748114366027,5.68167231,177.09,177.06,5.68269215]
[1748114368632,0.03627231,177.09,177.06,0.03679215]
[1748114369732,0.03627231,177.09,177.08,5.6455]
[1748114373037,0.03627231,177.09,177.07,5.6457]
[1748114378138,0.03627231,177.09,177.06,0.03679215]
[1748114378435,5.13019448,177.08,177.06,0.03679215]
[1748114378634,5.6458,177.07,177.06,0.03679215]
[1748114382238,5.6476,177.02,177.0,1.98]
[1748114382538,5.6476,177.02,176.97,1.982]
[1748114382737,5.6476,177.02,176.98,5.6485]
[1748114383241,5.68536493,177.02,176.98,5.68687613]
[1748114385040,0.03776493,177.02,176.98,0.03837613]
[1748114385242,5.13019448,177.01,176.98,0.03837613]
[1748114386134,5.6483,177.0,176.98,0.03837613]
[1748114387236,5.6484,176.99,176.98,0.03837613]
[1748114387541,10.77859448,176.99,176.98,0.03837613]
[1748114389649,5.6484,176.99,176.98,0.03837613]
[1748114392343,5.6496,176.96,176.91,5.6507]
[1748114392643,5.6496,176.96,176.92,5.6505]
[1748114393340,5.68843082,176.96,176.92,5.68932554]
[1748114393729,5.68843082,176.96,176.93,5.6503]
[1748114393935,0.03883082,176.96,176.93,5.6503]
[1748114396350,5.68823082,176.96,176.92,5.68932554]
[1748114397250,0.03883082,176.96,176.93,5.65]
[1748114399647,5.68823082,176.96,176.93,5.65]
[1748114401751,5.68823082,176.96,176.92,5.68932554]
[1748114401949,5.68823082,176.96,176.92,0.03882554]
[1748114402448,0.03883082,176.96,176.93,5.6502]
[1748114402753,0.03883082,176.96,176.92,0.03882554]
[1748114402951,112.06,177.0,176.92,0.03882554]
[1748114403352,112.06,177.03,176.92,0.03882554]
[1748114403551,5.6477,177.02,176.98,5.6485]
[1748114403754,112.06,177.03,176.9,121.7124]
[1748114404052,0.036089,176.98,176.95,0.04024674]
[1748114405555,0.036089,176.98,176.97,5.649]
[1748114406644,5.6456,177.08,177.04,5.6465]
[1748114406854,112.06,177.1,177.04,5.6465]
[1748114407155,112.06,177.1,176.99,112.06]
[1748114407658,0.03652077,177.06,177.03,0.03979785]
[1748114408358,0.03652077,177.06,177.04,5.6468]
[1748114413250,0.03652077,177.06,177.03,0.03979785]
[1748114413864,0.03652077,177.06,177.04,5.6468]
[1748114414563,0.03652077,177.06,177.05,5.6464]
[1748114416659,0.03652077,177.06,177.04,5.6467]
[1748114417063,0.03652077,177.06,177.03,0.03979785]
[1748114417261,0.03652077,177.06,177.04,5.6467]
[1748114417462,0.03652077,177.06,177.03,0.03979785]
[1748114417861,0.03652077,177.06,177.03,5.68659785]
[1748114418970,5.68272077,177.06,177.03,0.03979785]
[1748114419161,0.03652077,177.06,177.03,0.03979785]
[1748114420567,5.6467,177.05,177.03,0.03979785]
[1748114421165,0.03652077,177.06,177.03,0.03979785]
[1748114421667,5.6467,177.05,177.03,0.03979785]
[1748114422668,5.6468,177.04,177.03,0.03979785]
[1748114424167,5.6465,177.05,177.03,0.03979785]
[1748114424568,0.03652077,177.06,177.03,0.03979785]
[1748114424867,5.68272077,177.06,177.03,0.03979785]
[1748114426766,5.68272077,177.06,177.03,5.68689785]
[1748114430569,5.6465,177.05,177.03,0.03979785]
[1748114430758,0.03652077,177.06,177.03,0.03979785]
[1748114431264,5.6467,177.05,177.03,0.03979785]
[1748114432473,0.03652077,177.06,177.03,5.68669785]
[1748114432971,0.03652077,177.06,177.04,5.6467]
[1748114433671,0.03652077,177.06,177.05,5.6464]
[1748114435777,0.03652077,177.06,177.04,5.6466]
[1748114437780,0.03652077,177.06,177.05,5.6464]
[1748114445280,0.03652077,177.06,177.04,5.6466]